[Event "Late-Titled-Tuesday-Blitz-October-03-2023"]
[Site "Chess.com"]
[Date "2023.10.03"]
[Round "1"]
[White "AyMitecK"]
[Black "jjbolanos"]
[Result "1-0"]
[WhiteElo "2530"]
[BlackElo "2104"]
[TimeControl "180+1"]
[EndTime "14:01:54 PDT"]
[Termination "AyMitecK won by resignation"]

1. e4 {[%clk 0:02:57.4]} 1... c5 {[%clk 0:02:59.5]} 2. Nf3 {[%clk 0:02:57]} 2...
e6 {[%clk 0:02:59.6]} 3. Nc3 {[%clk 0:02:56.3]} 3... a6 {[%clk 0:02:50.1]} 4. d4
{[%clk 0:02:52.7]} 4... cxd4 {[%clk 0:02:47.6]} 5. Nxd4 {[%clk 0:02:53.6]} 5...
Qc7 {[%clk 0:02:48.2]} 6. a3 {[%clk 0:02:52.8]} 6... Nf6 {[%clk 0:02:45.2]} 7.
Be3 {[%clk 0:02:52]} 7... b5 {[%clk 0:02:44.6]} 8. Be2 {[%clk 0:02:51.1]} 8...
b4 {[%clk 0:02:39.6]} 9. axb4 {[%clk 0:02:45.3]} 9... Bxb4 {[%clk 0:02:35.6]}
10. O-O {[%clk 0:02:29.9]} 10... Bxc3 {[%clk 0:02:17.5]} 11. Nb5 {[%clk
0:02:29.8]} 11... Nxe4 {[%clk 0:02:18.1]} 12. Nxc7+ {[%clk 0:02:28.8]} 1-0

[Event "Late-Titled-Tuesday-Blitz-October-03-2023"]
[Site "Chess.com"]
[Date "2023.10.03"]
[Round "1"]
[White "KVAIDAN"]
[Black "Misticpikachu"]
[Result "1-0"]
[WhiteElo "2269"]
[BlackElo "2563"]
[TimeControl "180+1"]
[EndTime "14:02:40 PDT"]
[Termination "KVAIDAN won by checkmate"]

1. f4 {[%clk 0:02:56.6]} 1... d5 {[%clk 0:02:59.6]} 2. Nf3 {[%clk 0:02:56.8]}
2... Nf6 {[%clk 0:03:00.3]} 3. e3 {[%clk 0:02:57.3]} 3... e6 {[%clk 0:03:00.9]}
4. b3 {[%clk 0:02:57.5]} 4... Bd6 {[%clk 0:03:01.5]} 5. Bb2 {[%clk 0:02:57.3]}
5... O-O {[%clk 0:03:02.2]} 6. Bd3 {[%clk 0:02:57.7]} 6... Nbd7 {[%clk
0:03:02.6]} 7. O-O {[%clk 0:02:56.8]} 7... c6 {[%clk 0:03:01.1]} 8. Ne5 {[%clk
0:02:56]} 8... Qc7 {[%clk 0:03:01.2]} 9. Nxd7 {[%clk 0:02:51.9]} 9... Nxd7
{[%clk 0:02:33.6]} 10. Bxh7+ {[%clk 0:02:47.9]} 10... Kxh7 {[%clk 0:02:32]} 11.
Qh5+ {[%clk 0:02:48.4]} 11... Kg8 {[%clk 0:02:32.6]} 12. Bxg7 {[%clk 0:02:48.7]}
12... f5 {[%clk 0:02:07.1]} 13. Qg6 {[%clk 0:02:29.4]} 13... Nc5 {[%clk
0:01:44.3]} 14. Bf6+ {[%clk 0:02:23.1]} 14... Qg7 {[%clk 0:01:40.9]} 15. Qxg7#
{[%clk 0:02:20.5]} 1-0

[Event "Late-Titled-Tuesday-Blitz-October-03-2023"]
[Site "Chess.com"]
[Date "2023.10.03"]
[Round "1"]
[White "mishanick"]
[Black "tgpgoat"]
[Result "1-0"]
[WhiteElo "3026"]
[BlackElo "2504"]
[TimeControl "180+1"]
[EndTime "14:03:15 PDT"]
[Termination "mishanick won by resignation"]

1. c4 {[%clk 0:03:00.2]} 1... Nf6 {[%clk 0:02:59.6]} 2. d4 {[%clk 0:02:59.5]}
2... e6 {[%clk 0:03:00.5]} 3. Nc3 {[%clk 0:03:00]} 3... Bb4 {[%clk 0:02:35.8]}
4. e3 {[%clk 0:03:00]} 4... d5 {[%clk 0:02:34.8]} 5. a3 {[%clk 0:02:59.1]} 5...
Bxc3+ {[%clk 0:02:34.6]} 6. bxc3 {[%clk 0:03:00]} 6... O-O {[%clk 0:02:34.4]} 7.
cxd5 {[%clk 0:03:00.3]} 7... exd5 {[%clk 0:02:34]} 8. Bd3 {[%clk 0:03:00.9]}
8... c5 {[%clk 0:02:33.4]} 9. f3 {[%clk 0:03:00.8]} 9... Re8 {[%clk 0:02:33.1]}
10. Ne2 {[%clk 0:03:01.3]} 10... Nc6 {[%clk 0:02:31.4]} 11. O-O {[%clk
0:02:58.5]} 11... b6 {[%clk 0:02:31.3]} 12. Ng3 {[%clk 0:02:57.9]} 12... Bb7
{[%clk 0:02:17.5]} 13. Ra2 {[%clk 0:02:47.8]} 13... Rc8 {[%clk 0:02:07.9]} 14.
Re2 {[%clk 0:02:48.4]} 14... cxd4 {[%clk 0:02:05.6]} 15. cxd4 {[%clk 0:02:48.1]}
15... Na5 {[%clk 0:02:05.7]} 16. Kh1 {[%clk 0:02:46.6]} 16... Nc4 {[%clk
0:02:03.7]} 17. e4 {[%clk 0:02:18.5]} 17... dxe4 {[%clk 0:02:00.3]} 18. fxe4
{[%clk 0:02:19.4]} 18... Qxd4 {[%clk 0:01:47.7]} 19. e5 {[%clk 0:02:17.6]} 19...
Red8 {[%clk 0:01:47.1]} 20. exf6 {[%clk 0:02:13.2]} 20... Qxd3 {[%clk
0:01:46.3]} 21. Re8+ {[%clk 0:02:13.4]} 21... Rxe8 {[%clk 0:01:41.9]} 22. Qxd3
{[%clk 0:02:13.1]} 22... Ne5 {[%clk 0:01:42.2]} 23. Qf5 {[%clk 0:02:12.4]} 23...
Rc2 {[%clk 0:01:35.9]} 24. Qxc2 {[%clk 0:02:10.9]} 1-0

[Event "Late-Titled-Tuesday-Blitz-October-03-2023"]
[Site "Chess.com"]
[Date "2023.10.03"]
[Round "1"]
[White "MikeSailer"]
[Black "HajiyevKanan"]
[Result "0-1"]
[WhiteElo "2138"]
[BlackElo "2537"]
[TimeControl "180+1"]
[EndTime "14:03:15 PDT"]
[Termination "HajiyevKanan won by resignation"]

1. d4 {[%clk 0:02:59.3]} 1... d5 {[%clk 0:02:58.4]} 2. Bf4 {[%clk 0:02:53.8]}
2... c5 {[%clk 0:02:58.6]} 3. e3 {[%clk 0:02:52.7]} 3... cxd4 {[%clk 0:02:59.2]}
4. exd4 {[%clk 0:02:52.9]} 4... Nc6 {[%clk 0:03:00.1]} 5. c3 {[%clk 0:02:46]}
5... Nf6 {[%clk 0:03:00.1]} 6. Bd3 {[%clk 0:02:42.5]} 6... Bg4 {[%clk 0:03:00]}
7. f3 {[%clk 0:02:40.2]} 7... Bh5 {[%clk 0:02:59.7]} 8. Ne2 {[%clk 0:02:40.6]}
8... Bg6 {[%clk 0:02:59.8]} 9. O-O {[%clk 0:02:41.3]} 9... e6 {[%clk 0:03:00.2]}
10. Bg3 {[%clk 0:02:26.8]} 10... Bd6 {[%clk 0:02:59.7]} 11. Nf4 {[%clk
0:02:20.9]} 11... Bxd3 {[%clk 0:02:54.6]} 12. Nxd3 {[%clk 0:02:17.8]} 12... O-O
{[%clk 0:02:55.5]} 13. Ne5 {[%clk 0:02:15.9]} 13... Bxe5 {[%clk 0:02:54.8]} 14.
dxe5 {[%clk 0:02:15.2]} 14... Nd7 {[%clk 0:02:52.1]} 15. Qe2 {[%clk 0:02:08.3]}
15... Qb6+ {[%clk 0:02:44.2]} 16. Kh1 {[%clk 0:02:04]} 16... Nc5 {[%clk
0:02:41.7]} 17. Bf2 {[%clk 0:01:51.6]} 17... Qa6 {[%clk 0:02:41.7]} 18. Qxa6
{[%clk 0:01:47.6]} 18... Nxa6 {[%clk 0:02:42.6]} 19. Nd2 {[%clk 0:01:46.5]}
19... Nxe5 {[%clk 0:02:38.5]} 20. Nb3 {[%clk 0:01:42.3]} 20... Nc4 {[%clk
0:02:35.4]} 21. Rab1 {[%clk 0:01:39.8]} 21... Rfc8 {[%clk 0:02:24.4]} 22. Nd4
{[%clk 0:01:31.2]} 22... Nd2 {[%clk 0:02:24.4]} 0-1

[Event "Late-Titled-Tuesday-Blitz-October-03-2023"]
[Site "Chess.com"]
[Date "2023.10.03"]
[Round "1"]
[White "sergoy"]
[Black "ural58"]
[Result "1-0"]
[WhiteElo "3006"]
[BlackElo "2500"]
[TimeControl "180+1"]
[EndTime "14:04:05 PDT"]
[Termination "sergoy won by resignation"]

1. d4 {[%clk 0:02:52.5]} 1... d5 {[%clk 0:02:58.6]} 2. c4 {[%clk 0:02:52.8]}
2... e5 {[%clk 0:02:57.9]} 3. dxe5 {[%clk 0:02:52.6]} 3... d4 {[%clk 0:02:58]}
4. Nf3 {[%clk 0:02:53.3]} 4... Nc6 {[%clk 0:02:58]} 5. a3 {[%clk 0:02:53.4]}
5... g6 {[%clk 0:02:57.7]} 6. g3 {[%clk 0:02:49.3]} 6... Bg7 {[%clk 0:02:56.5]}
7. Bg2 {[%clk 0:02:49.6]} 7... Nxe5 {[%clk 0:02:53.6]} 8. Nbd2 {[%clk
0:02:48.3]} 8... Nxf3+ {[%clk 0:02:52.1]} 9. Nxf3 {[%clk 0:02:48.3]} 9... Ne7
{[%clk 0:02:52.1]} 10. O-O {[%clk 0:02:36.7]} 10... O-O {[%clk 0:02:51.9]} 11.
Bf4 {[%clk 0:02:35.6]} 11... Nc6 {[%clk 0:02:49.7]} 12. b4 {[%clk 0:02:30.5]}
12... Re8 {[%clk 0:02:35]} 13. Rc1 {[%clk 0:02:26.3]} 13... h6 {[%clk
0:02:27.9]} 14. h4 {[%clk 0:02:23.3]} 14... Bg4 {[%clk 0:02:26.7]} 15. Qd2
{[%clk 0:02:23.3]} 15... Kh7 {[%clk 0:02:25.8]} 16. b5 {[%clk 0:02:23.1]} 16...
Ne7 {[%clk 0:02:23.5]} 17. Ne5 {[%clk 0:02:21.4]} 17... Bxe5 {[%clk 0:01:43.9]}
18. Bxe5 {[%clk 0:02:22.3]} 18... c5 {[%clk 0:01:38.3]} 19. Qf4 {[%clk
0:02:15.1]} 19... Be6 {[%clk 0:01:34.9]} 20. Bxb7 {[%clk 0:02:13.5]} 20... Ng8
{[%clk 0:01:20]} 21. e3 {[%clk 0:02:05.6]} 21... f6 {[%clk 0:01:14.9]} 22. Bc7
{[%clk 0:02:05]} 22... Qe7 {[%clk 0:01:04]} 23. Bxa8 {[%clk 0:02:05]} 23... Rxa8
{[%clk 0:01:02.5]} 24. exd4 {[%clk 0:02:05.5]} 24... g5 {[%clk 0:00:59.5]} 25.
Qe4+ {[%clk 0:02:05.1]} 1-0

[Event "Late-Titled-Tuesday-Blitz-October-03-2023"]
[Site "Chess.com"]
[Date "2023.10.03"]
[Round "1"]
[White "ContrVersia"]
[Black "Pomberito2"]
[Result "0-1"]
[WhiteElo "2867"]
[BlackElo "2477"]
[TimeControl "180+1"]
[EndTime "14:04:21 PDT"]
[Termination "Pomberito2 won by resignation"]

1. Nf3 {[%clk 0:03:00.9]} 1... Nf6 {[%clk 0:02:58.7]} 2. c4 {[%clk 0:03:01.2]}
2... e6 {[%clk 0:02:58.3]} 3. g3 {[%clk 0:03:01.7]} 3... b6 {[%clk 0:02:57.7]}
4. Bg2 {[%clk 0:03:02]} 4... Bb7 {[%clk 0:02:57.6]} 5. O-O {[%clk 0:03:02.7]}
5... Be7 {[%clk 0:02:52.5]} 6. d4 {[%clk 0:03:02.6]} 6... d5 {[%clk 0:02:50.7]}
7. cxd5 {[%clk 0:03:02.4]} 7... exd5 {[%clk 0:02:49.2]} 8. Nc3 {[%clk 0:03:02]}
8... O-O {[%clk 0:02:48.3]} 9. Qb3 {[%clk 0:03:02.1]} 9... c6 {[%clk 0:02:47.4]}
10. Bf4 {[%clk 0:02:48.3]} 10... Na6 {[%clk 0:02:43.4]} 11. Rad1 {[%clk
0:02:43.2]} 11... Nc7 {[%clk 0:02:39.6]} 12. Ne5 {[%clk 0:02:39.8]} 12... Ne6
{[%clk 0:02:38.3]} 13. Bc1 {[%clk 0:02:39.9]} 13... Rc8 {[%clk 0:02:33.9]} 14.
Rfe1 {[%clk 0:02:39.9]} 14... Qc7 {[%clk 0:02:26.1]} 15. e4 {[%clk 0:02:33.2]}
15... Nxd4 {[%clk 0:02:16.7]} 16. Rxd4 {[%clk 0:02:24.6]} 16... Qxe5 {[%clk
0:02:15.6]} 17. Rdd1 {[%clk 0:02:24.7]} 17... Bc5 {[%clk 0:01:50.8]} 18. exd5
{[%clk 0:02:17.3]} 18... Qf5 {[%clk 0:01:37.9]} 19. Be3 {[%clk 0:02:09.6]} 19...
Bxe3 {[%clk 0:01:35.4]} 20. Rxe3 {[%clk 0:02:10.5]} 20... cxd5 {[%clk
0:01:33.8]} 21. Nxd5 {[%clk 0:02:10]} 21... Nxd5 {[%clk 0:01:33.3]} 22. Bxd5
{[%clk 0:02:09.7]} 22... Bxd5 {[%clk 0:01:28.4]} 23. Rxd5 {[%clk 0:02:07.4]}
23... Qb1+ {[%clk 0:01:24.6]} 24. Kg2 {[%clk 0:02:04.5]} 24... Rc1 {[%clk
0:01:22.7]} 25. Rd7 {[%clk 0:01:38.1]} 25... Rg1+ {[%clk 0:01:17.7]} 26. Kf3
{[%clk 0:01:37.9]} 26... Qf5+ {[%clk 0:01:15.6]} 0-1

[Event "Late-Titled-Tuesday-Blitz-October-03-2023"]
[Site "Chess.com"]
[Date "2023.10.03"]
[Round "1"]
[White "LeninGuerra"]
[Black "YellowJacek"]
[Result "1-0"]
[WhiteElo "2598"]
[BlackElo "2296"]
[TimeControl "180+1"]
[EndTime "14:04:44 PDT"]
[Termination "LeninGuerra won by resignation"]

1. e4 {[%clk 0:02:59.3]} 1... c5 {[%clk 0:02:59.2]} 2. Nf3 {[%clk 0:02:58.4]}
2... d6 {[%clk 0:02:59.2]} 3. b4 {[%clk 0:02:58.3]} 3... cxb4 {[%clk 0:02:58.4]}
4. a3 {[%clk 0:02:58.9]} 4... bxa3 {[%clk 0:02:58]} 5. Bxa3 {[%clk 0:02:59.6]}
5... Nf6 {[%clk 0:02:58.2]} 6. Bd3 {[%clk 0:02:58.9]} 6... Nc6 {[%clk 0:02:57]}
7. O-O {[%clk 0:02:58.5]} 7... g6 {[%clk 0:02:55.8]} 8. c3 {[%clk 0:02:58.6]}
8... Bg7 {[%clk 0:02:56]} 9. Bc2 {[%clk 0:02:58.8]} 9... e5 {[%clk 0:02:34.7]}
10. d3 {[%clk 0:02:50.4]} 10... O-O {[%clk 0:02:34.5]} 11. Nbd2 {[%clk
0:02:50.4]} 11... Re8 {[%clk 0:02:34.6]} 12. Nc4 {[%clk 0:02:50.3]} 12... d5
{[%clk 0:02:26.1]} 13. Nd6 {[%clk 0:02:49.8]} 13... Re6 {[%clk 0:02:23.7]} 14.
Nxc8 {[%clk 0:02:41.9]} 14... Rxc8 {[%clk 0:02:24.6]} 15. Qb1 {[%clk 0:02:40.1]}
15... dxe4 {[%clk 0:02:16]} 16. dxe4 {[%clk 0:02:38.8]} 16... Qc7 {[%clk
0:02:06]} 17. Rd1 {[%clk 0:02:31.8]} 17... Na5 {[%clk 0:02:02.4]} 18. Bb4 {[%clk
0:02:30]} 18... Nc6 {[%clk 0:01:54]} 19. Ng5 {[%clk 0:02:26.1]} 19... Ree8
{[%clk 0:01:48.8]} 20. Bd6 {[%clk 0:02:24.2]} 20... Qd7 {[%clk 0:01:41.2]} 21.
Bb3 {[%clk 0:02:18.6]} 21... Nd8 {[%clk 0:01:26.4]} 22. Bxe5 {[%clk 0:02:12.6]}
22... Qg4 {[%clk 0:01:25.4]} 23. Rxd8 {[%clk 0:02:05.2]} 23... Qxg5 {[%clk
0:01:19.8]} 24. Rxc8 {[%clk 0:02:00.6]} 24... Rxc8 {[%clk 0:01:18.2]} 25. f4
{[%clk 0:01:52.9]} 25... Qg4 {[%clk 0:01:12.8]} 26. Rxa7 {[%clk 0:01:51.5]}
26... Nxe4 {[%clk 0:00:55]} 27. Qxe4 {[%clk 0:01:44]} 27... Bxe5 {[%clk
0:00:54.2]} 28. Qxe5 {[%clk 0:01:43.6]} 1-0

[Event "Late-Titled-Tuesday-Blitz-October-03-2023"]
[Site "Chess.com"]
[Date "2023.10.03"]
[Round "1"]
[White "Orest_Vovk"]
[Black "Krakozia"]
[Result "0-1"]
[WhiteElo "2500"]
[BlackElo "3007"]
[TimeControl "180+1"]
[EndTime "14:04:57 PDT"]
[Termination "Krakozia won by resignation"]

1. h4 {[%clk 0:02:57.7]} 1... d5 {[%clk 0:02:58.4]} 2. h5 {[%clk 0:02:56.3]}
2... e5 {[%clk 0:02:57]} 3. h6 {[%clk 0:02:56.3]} 3... Nxh6 {[%clk 0:02:49.6]}
4. d4 {[%clk 0:02:56.9]} 4... Nc6 {[%clk 0:02:33.3]} 5. Bxh6 {[%clk 0:02:56.1]}
5... gxh6 {[%clk 0:02:32.4]} 6. dxe5 {[%clk 0:02:57]} 6... Nxe5 {[%clk
0:02:30.9]} 7. Nf3 {[%clk 0:02:57.9]} 7... Bg7 {[%clk 0:02:29.1]} 8. Nxe5 {[%clk
0:02:55.3]} 8... Bxe5 {[%clk 0:02:28.7]} 9. Nc3 {[%clk 0:02:56.2]} 9... d4
{[%clk 0:02:22.5]} 10. Ne4 {[%clk 0:02:51.7]} 10... Bf5 {[%clk 0:02:21.7]} 11.
Qd3 {[%clk 0:02:23.8]} 11... Qd5 {[%clk 0:02:15]} 12. Rh4 {[%clk 0:02:05.7]}
12... O-O-O {[%clk 0:02:13.4]} 13. Qf3 {[%clk 0:01:41.3]} 13... Qa5+ {[%clk
0:01:55.4]} 14. Nd2 {[%clk 0:01:21.6]} 14... Bf6 {[%clk 0:01:47.9]} 15. b4
{[%clk 0:00:44.1]} 15... Qe5 {[%clk 0:01:47]} 16. Rf4 {[%clk 0:00:30.3]} 16...
d3 {[%clk 0:01:45.9]} 17. Nb3 {[%clk 0:00:12.6]} 17... Qc3+ {[%clk 0:01:43.5]}
18. Kd1 {[%clk 0:00:10.7]} 18... dxc2+ {[%clk 0:01:41]} 0-1

[Event "Late-Titled-Tuesday-Blitz-October-03-2023"]
[Site "Chess.com"]
[Date "2023.10.03"]
[Round "1"]
[White "Hirna2005"]
[Black "Macron20hTF1"]
[Result "0-1"]
[WhiteElo "2307"]
[BlackElo "2607"]
[TimeControl "180+1"]
[EndTime "14:05:08 PDT"]
[Termination "Macron20hTF1 won by resignation"]

1. e4 {[%clk 0:03:00.9]} 1... c6 {[%clk 0:02:59.1]} 2. Nc3 {[%clk 0:03:00.4]}
2... d5 {[%clk 0:03:00]} 3. Nf3 {[%clk 0:03:00.3]} 3... g6 {[%clk 0:02:57.4]} 4.
d4 {[%clk 0:02:56]} 4... Bg7 {[%clk 0:02:57.7]} 5. Be3 {[%clk 0:02:55.5]} 5...
dxe4 {[%clk 0:02:54.5]} 6. Nxe4 {[%clk 0:02:54.7]} 6... Nf6 {[%clk 0:02:55.2]}
7. Bd3 {[%clk 0:02:52.4]} 7... O-O {[%clk 0:02:55.2]} 8. Qd2 {[%clk 0:02:48.4]}
8... Nbd7 {[%clk 0:02:51.7]} 9. Bh6 {[%clk 0:02:43.7]} 9... Nxe4 {[%clk
0:02:51.8]} 10. Bxe4 {[%clk 0:02:43.3]} 10... Nf6 {[%clk 0:02:52.4]} 11. Bd3
{[%clk 0:02:40.4]} 11... Re8 {[%clk 0:02:42]} 12. Bxg7 {[%clk 0:02:39.4]} 12...
Kxg7 {[%clk 0:02:42.5]} 13. O-O-O {[%clk 0:02:38.6]} 13... Bg4 {[%clk
0:02:37.5]} 14. Qf4 {[%clk 0:02:30.1]} 14... Bxf3 {[%clk 0:02:36.6]} 15. Qxf3
{[%clk 0:02:30.3]} 15... Qa5 {[%clk 0:02:32.1]} 16. Kb1 {[%clk 0:02:26.2]} 16...
Rad8 {[%clk 0:02:30.9]} 17. c3 {[%clk 0:02:25.9]} 17... c5 {[%clk 0:02:27.5]}
18. dxc5 {[%clk 0:02:16.5]} 18... Qxc5 {[%clk 0:02:26.5]} 19. Rhe1 {[%clk
0:02:08.5]} 19... e5 {[%clk 0:02:23.8]} 20. Bc2 {[%clk 0:02:04.6]} 20... e4
{[%clk 0:02:10.7]} 21. Qf4 {[%clk 0:01:45.2]} 21... Nd5 {[%clk 0:02:03.5]} 22.
Qh4 {[%clk 0:01:37.6]} 22... f5 {[%clk 0:01:58.1]} 23. Bb3 {[%clk 0:01:28.1]}
23... Nf6 {[%clk 0:01:49.4]} 24. Qf4 {[%clk 0:01:19.3]} 24... a5 {[%clk
0:01:39.7]} 25. h3 {[%clk 0:01:11.1]} 25... h5 {[%clk 0:01:38.4]} 26. Rxd8
{[%clk 0:00:54.2]} 26... Rxd8 {[%clk 0:01:37.8]} 27. f3 {[%clk 0:00:53.6]} 27...
Qf2 {[%clk 0:01:32.9]} 28. Qc7+ {[%clk 0:00:43.3]} 28... Rd7 {[%clk 0:01:33]}
0-1

[Event "Late-Titled-Tuesday-Blitz-October-03-2023"]
[Site "Chess.com"]
[Date "2023.10.03"]
[Round "1"]
[White "MAGMAchess02"]
[Black "ArtemDyachuk"]
[Result "0-1"]
[WhiteElo "2366"]
[BlackElo "2674"]
[TimeControl "180+1"]
[EndTime "14:05:11 PDT"]
[Termination "ArtemDyachuk won by resignation"]

1. Nf3 {[%clk 0:02:53.5]} 1... Nf6 {[%clk 0:02:58.8]} 2. c4 {[%clk 0:02:53]}
2... c5 {[%clk 0:02:56.3]} 3. g3 {[%clk 0:02:50.3]} 3... b6 {[%clk 0:02:56.4]}
4. Bg2 {[%clk 0:02:50.5]} 4... Bb7 {[%clk 0:02:56.5]} 5. Nc3 {[%clk 0:02:51.1]}
5... e6 {[%clk 0:02:55.5]} 6. O-O {[%clk 0:02:50.8]} 6... Be7 {[%clk 0:02:54.9]}
7. b3 {[%clk 0:02:46.8]} 7... O-O {[%clk 0:02:53.8]} 8. Bb2 {[%clk 0:02:46.8]}
8... d6 {[%clk 0:02:53.5]} 9. d4 {[%clk 0:02:45.4]} 9... cxd4 {[%clk 0:02:52.8]}
10. Qxd4 {[%clk 0:02:45.8]} 10... a6 {[%clk 0:02:49.4]} 11. Rfd1 {[%clk
0:02:42.3]} 11... Nbd7 {[%clk 0:02:48.3]} 12. Rac1 {[%clk 0:02:37.4]} 12... Rc8
{[%clk 0:02:43.5]} 13. Rc2 {[%clk 0:02:11.6]} 13... Qc7 {[%clk 0:02:41]} 14. a4
{[%clk 0:02:06.2]} 14... Qb8 {[%clk 0:02:40.2]} 15. Rcd2 {[%clk 0:01:48.6]}
15... Nc5 {[%clk 0:02:34.9]} 16. Ng5 {[%clk 0:01:26.8]} 16... h6 {[%clk
0:02:10.8]} 17. Nge4 {[%clk 0:01:15.9]} 17... Nxb3 {[%clk 0:01:54.8]} 18. Qd3
{[%clk 0:01:13.2]} 18... Nxd2 {[%clk 0:01:50.2]} 19. Rxd2 {[%clk 0:01:08.6]}
19... Qc7 {[%clk 0:01:39.4]} 20. Nxf6+ {[%clk 0:00:39.1]} 20... Bxf6 {[%clk
0:01:40.3]} 21. Qxd6 {[%clk 0:00:39.3]} 21... Qxd6 {[%clk 0:01:38.2]} 22. Rxd6
{[%clk 0:00:40.2]} 22... Bxg2 {[%clk 0:01:38.3]} 23. Kxg2 {[%clk 0:00:38.3]}
23... Rxc4 {[%clk 0:01:38.6]} 24. Nd1 {[%clk 0:00:34.4]} 24... Rd8 {[%clk
0:01:32.6]} 25. Rxd8+ {[%clk 0:00:19.9]} 25... Bxd8 {[%clk 0:01:33.5]} 0-1

[Event "Late-Titled-Tuesday-Blitz-October-03-2023"]
[Site "Chess.com"]
[Date "2023.10.03"]
[Round "1"]
[White "Angry_Twin"]
[Black "Valeron87"]
[Result "1-0"]
[WhiteElo "2923"]
[BlackElo "2475"]
[TimeControl "180+1"]
[EndTime "14:05:13 PDT"]
[Termination "Angry_Twin won on time"]

1. e4 {[%clk 0:02:55.8]} 1... c5 {[%clk 0:02:59.5]} 2. Nf3 {[%clk 0:02:55.7]}
2... Nc6 {[%clk 0:03:00.2]} 3. Bb5 {[%clk 0:02:55.3]} 3... e6 {[%clk 0:03:00.4]}
4. Bxc6 {[%clk 0:02:55.5]} 4... bxc6 {[%clk 0:03:00.3]} 5. d3 {[%clk 0:02:55.9]}
5... Ne7 {[%clk 0:02:59.3]} 6. Qe2 {[%clk 0:02:56.4]} 6... Qc7 {[%clk
0:02:59.4]} 7. h4 {[%clk 0:02:55.5]} 7... e5 {[%clk 0:02:54.4]} 8. h5 {[%clk
0:02:51.7]} 8... h6 {[%clk 0:02:35.1]} 9. Nbd2 {[%clk 0:02:49.3]} 9... d6 {[%clk
0:02:35.3]} 10. Nc4 {[%clk 0:02:46.6]} 10... Ng8 {[%clk 0:02:25.6]} 11. c3
{[%clk 0:02:38.6]} 11... Nf6 {[%clk 0:02:25.4]} 12. d4 {[%clk 0:02:39.1]} 12...
cxd4 {[%clk 0:02:19.4]} 13. cxd4 {[%clk 0:02:39.4]} 13... Bg4 {[%clk 0:02:02.1]}
14. b3 {[%clk 0:02:29.6]} 14... Bxf3 {[%clk 0:01:18.5]} 15. Qxf3 {[%clk
0:02:20]} 15... d5 {[%clk 0:01:17]} 16. exd5 {[%clk 0:02:15.3]} 16... Bb4+
{[%clk 0:01:11.2]} 17. Kf1 {[%clk 0:02:12.3]} 17... e4 {[%clk 0:01:06.6]} 18. d6
{[%clk 0:02:09.6]} 18... exf3 {[%clk 0:01:03.7]} 19. dxc7 {[%clk 0:02:09.5]}
19... fxg2+ {[%clk 0:01:02.8]} 20. Kxg2 {[%clk 0:02:09.8]} 20... Nd5 {[%clk
0:00:55.4]} 21. Be3 {[%clk 0:02:05.2]} 21... f6 {[%clk 0:00:48.5]} 22. Kf3
{[%clk 0:01:58.3]} 22... Kd7 {[%clk 0:00:48.5]} 23. Rhg1 {[%clk 0:01:58.6]}
23... Rhg8 {[%clk 0:00:48.4]} 24. Rg6 {[%clk 0:01:58.5]} 24... Rae8 {[%clk
0:00:46]} 25. Rag1 {[%clk 0:01:57.8]} 25... Re7 {[%clk 0:00:11.9]} 26. Bxh6
{[%clk 0:01:57.5]} 26... Kxc7 {[%clk 0:00:09.3]} 27. Rxg7 {[%clk 0:01:57.3]}
27... Rgxg7 {[%clk 0:00:08.1]} 28. Rxg7 {[%clk 0:01:58.2]} 28... Rxg7 {[%clk
0:00:06.1]} 29. Bxg7 {[%clk 0:01:59.1]} 1-0

[Event "Late-Titled-Tuesday-Blitz-October-03-2023"]
[Site "Chess.com"]
[Date "2023.10.03"]
[Round "1"]
[White "Bodhanas"]
[Black "szachuspl"]
[Result "0-1"]
[WhiteElo "2126"]
[BlackElo "2535"]
[TimeControl "180+1"]
[EndTime "14:05:14 PDT"]
[Termination "szachuspl won by resignation"]

1. d4 {[%clk 0:02:57.2]} 1... Nf6 {[%clk 0:02:54.3]} 2. Nf3 {[%clk 0:02:55.7]}
2... g6 {[%clk 0:02:53.8]} 3. Bf4 {[%clk 0:02:54.7]} 3... Bg7 {[%clk 0:02:54]}
4. e3 {[%clk 0:02:54.9]} 4... O-O {[%clk 0:02:52.6]} 5. Bd3 {[%clk 0:02:54.4]}
5... d6 {[%clk 0:02:53.1]} 6. O-O {[%clk 0:02:53.6]} 6... Nbd7 {[%clk
0:02:53.3]} 7. Re1 {[%clk 0:02:51.3]} 7... Re8 {[%clk 0:02:53.2]} 8. e4 {[%clk
0:02:49.1]} 8... e5 {[%clk 0:02:53.1]} 9. dxe5 {[%clk 0:02:47.5]} 9... dxe5
{[%clk 0:02:53.6]} 10. Bg3 {[%clk 0:02:46.9]} 10... c6 {[%clk 0:02:53.3]} 11.
Nbd2 {[%clk 0:02:44.9]} 11... Qe7 {[%clk 0:02:53.5]} 12. h3 {[%clk 0:02:43.3]}
12... Nh5 {[%clk 0:02:53.3]} 13. Bh2 {[%clk 0:02:41.3]} 13... Nf4 {[%clk
0:02:51.3]} 14. Bxf4 {[%clk 0:02:40.2]} 14... exf4 {[%clk 0:02:51.5]} 15. e5
{[%clk 0:02:33.6]} 15... Nxe5 {[%clk 0:02:42.7]} 16. Nxe5 {[%clk 0:02:32.6]}
16... Bxe5 {[%clk 0:02:42.5]} 17. Nf3 {[%clk 0:02:27.6]} 17... f6 {[%clk
0:02:41.1]} 18. Bc4+ {[%clk 0:02:24.1]} 18... Kg7 {[%clk 0:02:41.1]} 19. Nxe5
{[%clk 0:02:08]} 19... fxe5 {[%clk 0:02:40.6]} 20. Qf3 {[%clk 0:02:07.2]} 20...
Bf5 {[%clk 0:02:39.4]} 21. c3 {[%clk 0:02:00.6]} 21... Rad8 {[%clk 0:02:38.4]}
22. Rad1 {[%clk 0:01:58.6]} 22... Rxd1 {[%clk 0:02:37.3]} 23. Rxd1 {[%clk
0:01:58]} 23... g5 {[%clk 0:02:38]} 24. Qe2 {[%clk 0:01:53.5]} 24... e4 {[%clk
0:02:36.9]} 25. h4 {[%clk 0:01:48.7]} 25... g4 {[%clk 0:02:34.7]} 26. Re1 {[%clk
0:01:46.2]} 26... Qxh4 {[%clk 0:02:33]} 27. Qd2 {[%clk 0:01:42.9]} 27... g3
{[%clk 0:02:30.4]} 28. Qd4+ {[%clk 0:01:42.6]} 28... Qf6 {[%clk 0:02:21.8]} 29.
Qxf6+ {[%clk 0:01:41.2]} 29... Kxf6 {[%clk 0:02:22]} 30. fxg3 {[%clk 0:01:41.9]}
30... fxg3 {[%clk 0:02:22.4]} 31. Re3 {[%clk 0:01:41.3]} 31... h5 {[%clk
0:02:15.8]} 32. Rxg3 {[%clk 0:01:40.2]} 32... e3 {[%clk 0:02:16.3]} 33. Be2
{[%clk 0:01:39.1]} 33... h4 {[%clk 0:02:12.1]} 34. Rf3 {[%clk 0:01:39.1]} 34...
Kg5 {[%clk 0:02:12.4]} 35. Kf1 {[%clk 0:01:37.2]} 35... a5 {[%clk 0:02:07.8]}
36. a3 {[%clk 0:01:33.8]} 36... c5 {[%clk 0:02:05.1]} 37. g3 {[%clk 0:01:32.4]}
37... h3 {[%clk 0:02:03]} 38. Rf4 {[%clk 0:01:29.1]} 38... Rd8 {[%clk
0:01:58.5]} 39. Bf3 {[%clk 0:01:19.2]} 39... Rd2 {[%clk 0:01:48.8]} 40. Be2
{[%clk 0:01:15.3]} 40... Rxb2 {[%clk 0:01:47]} 41. Rh4 {[%clk 0:01:04.2]} 41...
Rb1+ {[%clk 0:01:46.7]} 42. Bd1 {[%clk 0:01:03.6]} 42... Rxd1+ {[%clk 0:01:47]}
43. Ke2 {[%clk 0:01:04.3]} 43... Rc1 {[%clk 0:01:42.5]} 44. Kxe3 {[%clk
0:01:04.2]} 44... Rxc3+ {[%clk 0:01:42.8]} 45. Kf2 {[%clk 0:01:04.1]} 45... Rxa3
{[%clk 0:01:43]} 46. Rh8 {[%clk 0:01:00]} 46... h2 {[%clk 0:01:43.3]} 47. Rxh2
{[%clk 0:00:58.9]} 47... Ra2+ {[%clk 0:01:43.8]} 48. Kg1 {[%clk 0:00:59.2]}
48... Rxh2 {[%clk 0:01:44.7]} 49. Kxh2 {[%clk 0:00:59.6]} 49... Kg4 {[%clk
0:01:45.6]} 0-1